[Event "Portugal-ch Seniors-65 2022"]
[Site "Atouguia da Baleia"]
[Date "2022.06.15"]
[Round "1.1"]
[White "Alves, Fernando Pereira Rib"]
[Black "Gori, Andrea"]
[Result "0-1"]
[ECO "C54"]
[WhiteElo "1524"]
[BlackElo "1970"]
[Annotator "TA"]
[PlyCount "90"]
[EventDate "2022.06.09"]
[EventType "swiss"]
[EventCountry "POR"]
[SourceTitle "playchess.com"]
[Source "ChessBase"]
[SourceQuality "1"]
[TimeControl "5400+30"]

{[%evp 16,90,15,18,25,-54,-65,-195,-221,-207,-193,-298,-200,-203,-104,-504,-205,-451,-51,-45,-32,-29,-7,-125,-98,-203,-192,-196,-179,-577,-602,-708,-79,-64,-75,-64,-72,-77,-71,-155,-47,-31,-41,-41,-48,-38,-45,-690,-679,-880,-835,-763,-462,-600,-551,-624,-552,-462,-549,-1327,-538,-508,-500,-1370,-1342,-1102,-983,-29982,-29983,-29983,-29974,-29974,-29975,-11517,-5791,-1773,-1527]} 1. e4 e5 2. Nf3 Nc6 3. Bc4 Bc5 4. c3 Nf6 5. d4 exd4 6. e5 d5 7. Bb5 Ne4 8. cxd4 Bb4+ 9. Nbd2 Bd7 {[%cal Oc6e5] C54: Giuoco Piano: 4 c3 Nf6, main lines with 5 d4 and 5 d3.} 10. Bd3 ({Better is} 10. O-O $11) 10... Bg4 $1 $15 {[#]} 11. Qa4 $146 (11. O-O $2 Nxd2 12. Bxd2 Bxd2 13. Qxd2 Bxf3 14. gxf3 Nxd4 $17) (11. Be2 $15) ({Predecessor:} 11. Bb5 O-O 12. Bxc6 bxc6 13. Qc2 Bxf3 14. gxf3 Ng5 15. Qb3 Rb8 16. Qd3 f6 17. f4 Ne4 18. f3 Nxd2 19. Bxd2 fxe5 {0-1 (30) Nwachukwu,C (1946)-Duda,L (1780) Crawley 2016}) 11... Bxf3 $19 {Black is clearly better.} 12. gxf3 Ng5 13. Ke2 (13. f4 $142 Nf3+ 14. Kd1 Bxd2 15. Bxd2) 13... O-O {...Qd7 is the strong threat.} 14. Nb3 a6 {Against Bb5} (14... Ne6 $1 $19 15. Be3 Qh4) 15. Be3 $2 {[%mdl 8192] [#]} (15. a3 $17 {was the crucial defense.} Be7 16. Na5 Nxa5 17. Qxa5) 15... Ne6 {Pair of Knights!} (15... Qd7 $142 $1 16. Kd1 (16. Qxc6 Qxc6) 16... b5 17. Bxb5 axb5 18. Qxb5 Rfb8) 16. Rac1 $2 (16. Rhc1 Be7 17. Rxc6 bxc6 18. Qxc6) 16... Be7 $2 ({Black should play} 16... b5 $19 17. Bxb5 axb5 18. Qxb5 {[#]} Rxa2 $1) 17. Rxc6 $15 bxc6 18. Qxc6 a5 {Black wants to play ...a4.} 19. Bf5 (19. f4 $1 $11) 19... Qc8 ({Reject} 19... a4 $6 20. Bxe6 axb3 21. Bxd5 Rxa2 22. Rb1 $11) 20. Qc2 (20. Bd3 $17) 20... g6 $19 21. Rg1 Kh8 22. Bh6 $2 (22. Bxe6 Qa6+ 23. Ke1 fxe6 24. Bg5) 22... gxf5 23. Qxf5 a4 $2 (23... Rg8 $19 {has better winning chances.} 24. Rxg8+ Qxg8) 24. Qxe6 $17 {White threatens Bg7+ and mate.} Rg8 {Inhibits Bg7+. The board is on fire.} (24... Qxe6 $2 {gets mated.} 25. Bg7+ Kg8 26. Bf6+) 25. Rxg8+ Kxg8 26. Qxe7 {Threatening mate with Qg5+.} Qa6+ 27. Ke1 (27. Kd1 $142 axb3 28. Qg5+ Qg6 29. Qxg6+ (29. axb3 Rb8 $15) 29... fxg6 30. axb3) 27... Qxh6 {[%mdl 4096] Endgame KQR-KQN} ({Black should try} 27... axb3 $17 28. Qg5+ Qg6 29. axb3 Qxg5 30. Bxg5 Rb8) 28. Nc5 $15 Qc1+ 29. Ke2 Qxb2+ 30. Kf1 Qb1+ 31. Ke2 $2 {[%mdl 8192] Black converts the advantage convincingly.} (31. Kg2 $15) 31... Qxa2+ $19 32. Kf1 Qb1+ 33. Ke2 Rb8 {( -> ...Rb2+)} 34. Nd3 {Against Rb2+} Qb6 {Against e6} 35. f4 Qg6 36. Qxc7 Rb3 37. Qc8+ Kg7 38. f5 Qg4+ 39. f3 (39. Kd2 $142 Qg5+ 40. Kc2) 39... Qg2+ 40. Ke3 Qg1+ 41. Kf4 Qxd4+ 42. Kg3 Qg1+ 43. Kf4 h6 {[%csl Gh6][%cal Rg1g5]} 44. f6+ Kh7 {[%csl Gh6][%cal Rg1g5]} 45. Qf5+ Qg6 {Weighted Error Value: White=1.05/Black=0.63} 0-1

[Event "Portugal-ch Seniors-65 2022"]
[Site "Atouguia da Baleia"]
[Date "2022.06.15"]
[Round "1.2"]
[White "Morais, Vitor"]
[Black "Brandao, Alvaro Sousa"]
[Result "1/2-1/2"]
[ECO "A46"]
[WhiteElo "1878"]
[BlackElo "1504"]
[Annotator "NA RC COMBH"]
[PlyCount "98"]
[EventDate "2022.06.09"]
[EventType "swiss"]
[EventCountry "POR"]
[SourceTitle "playchess.com"]
[Source "ChessBase"]
[SourceQuality "1"]
[TimeControl "5400+30"]

1. d4 {[%emt 0:00:01]} Nf6 {[%emt 0:00:15]} 2. Nf3 {[%emt 0:00:13]} e6 {[%emt 0:01:05]} 3. Bf4 {[%emt 0:00:11]} g6 {[%emt 0:01:49]} 4. e3 {[%emt 0:00:07]} Bg7 {[%emt 0:00:07]} 5. Be2 {[%emt 0:00:08]} O-O {[%emt 0:00:16]} 6. h3 {[%emt 0:00:05]} a5 {[%emt 0:02:32]} 7. O-O {[%emt 0:00:08]} b6 {[%emt 0:00:27]} 8. c3 {[%emt 0:00:14]} Ba6 {[%emt 0:00:57]} 9. Nbd2 {[%emt 0:00:21]} Bxe2 {[%emt 0:00:08]} 10. Qxe2 {[%emt 0:00:10]} d6 {[%emt 0:00:38]} 11. e4 {[%emt 0:00:09]} Nc6 {[%emt 0:02:32]} 12. Rad1 {[%emt 0:00:09]} Rb8 {[%emt 0:00:52]} 13. Rfe1 {[%emt 0:00:11]} Qd7 {[%emt 0:00:55]} 14. Bh2 {[%emt 0:00:31]} Rfd8 {[%emt 0:05:29]} 15. Nf1 {[%emt 0:00:24]} Qc8 {[%emt 0:03:14]} 16. d5 {[%emt 0:01:38]} exd5 {[%emt 0:02:42]} 17. exd5 {[%emt 0:00:11]} Re8 {[%emt 0:01:14]} 18. Qd3 {[%emt 0:01:09]} Ne7 {[%emt 0:01:26]} 19. Ne3 {[%emt 0:00:17]} Bh6 {[%emt 0:06:01]} 20. c4 {[%emt 0:00:15]} Nd7 {[%emt 0:03:11]} 21. Nd4 {[%emt 0:01:04]} Nc5 {[%emt 0:03:50]} 22. Qc2 {[%emt 0:00:13]} Qd7 {[%emt 0:06:59]} 23. Nb5 {[%emt 0:00:32]} Bxe3 {[%emt 0:02:36]} 24. Rxe3 {[%emt 0:00:47]} Nf5 {[%emt 0:00:26]} 25. Ree1 {[%emt 0:00:12]} Re7 {[%emt 0:04:33]} 26. Bf4 {[%emt 0:04:16]} Rbe8 {[%emt 0:02:35]} 27. Kf1 {[%emt 0:00:34]} Rxe1+ {[%emt 0:06:34]} 28. Rxe1 {[%emt 0:00:08]} Rxe1+ {[%emt 0:00:04]} 29. Kxe1 {[%emt 0:00:09]} c6 {[%emt 0:01:44]} 30. dxc6 {[%emt 0:00:37]} Qxc6 {[%emt 0:00:50]} 31. Qe2 {[%emt 0:07:48]} Ne6 {[%emt 0:02:48]} 32. Be3 {[%emt 0:01:23]} Nxe3 {[%emt 0:03:30]} 33. fxe3 {[%emt 0:00:14]} Kf8 {[%emt 0:05:10]} 34. Kf2 {[%emt 0:01:29]} Ke8 {[%emt 0:02:24]} 35. Qf3 {[%emt 0:03:14]} Qxf3+ {[%emt 0:02:30]} 36. Kxf3 {[%emt 0:00:11]} Kd7 {[%emt 0:00:31]} 37. Ke4 {[%emt 0:00:28]} Kc6 {[%emt 0:05:22]} 38. Nd4+ {[%emt 0:00:11]} Kd7 {[%emt 0:00:59]} 39. Nxe6 {[%emt 0:00:45]} Kxe6 {[%emt 0:01:03]} 40. b3 {[%emt 0:00:37]} h6 {[%emt 0:00:23]} 41. a3 {[%emt 0:00:07]} f5+ {[%emt 0:01:06]} 42. Kd4 {[%emt 0:00:27]} g5 {[%emt 0:00:29]} 43. b4 {[%emt 0:00:29]} axb4 {[%emt 0:00:33]} 44. axb4 {[%emt 0:00:11]} h5 {[%emt 0:02:06]} 45. g3 {[%emt 0:02:06]} h4 {[%emt 0:05:35]} 46. gxh4 {[%emt 0:00:56]} gxh4 {[%emt 0:00:20]} 47. b5 {[%emt 0:00:17]} Ke7 {[%emt 0:02:54]} 48. Kd5 {[%emt 0:01:13]} Kd7 {[%emt 0:00:18]} 49. e4 f4 1/2-1/2

[Event "Portugal-ch Seniors-65 2022"]
[Site "Atouguia da Baleia"]
[Date "2022.06.15"]
[Round "1.3"]
[White "Viana, Eduardo Rosa"]
[Black "Antao, Jorge"]
[Result "0-1"]
[ECO "A01"]
[WhiteElo "1523"]
[BlackElo "1819"]
[Annotator "NA RC COMBH"]
[PlyCount "114"]
[EventDate "2022.06.09"]
[EventType "swiss"]
[EventCountry "POR"]
[SourceTitle "playchess.com"]
[Source "ChessBase"]
[SourceQuality "1"]
[TimeControl "5400+30"]

1. b3 a5 2. Bb2 a4 3. Nf3 e6 4. c4 f5 5. e3 Nf6 6. d3 Bb4+ 7. Bc3 Qe7 8. Be2 axb3 9. Qxb3 Bxc3+ 10. Nxc3 O-O 11. O-O b6 12. Rfd1 Nc6 13. a3 Bb7 14. Nb5 Rfc8 15. Nbd4 Na5 16. Qa2 Ra6 17. c5 Bd5 18. Qb2 bxc5 19. Nc2 Rb6 20. Qc3 Nc6 21. Rdb1 Rcb8 22. Rxb6 Rxb6 23. a4 d6 24. a5 Rb3 25. Qe1 Qd8 26. a6 Rb8 27. Na3 Nb4 28. d4 Nd7 29. Qc3 Ra8 30. Nc2 Nc6 31. dxc5 Nxc5 32. Nb4 Nxb4 33. Qxb4 Qb8 34. Qa3 Ra7 35. Nd4 g6 36. h3 Kf7 37. Bf1 e5 38. Nc2 Qb3 39. Qxb3 Nxb3 40. Ra3 Nc5 41. Nb4 Ba8 42. Bc4+ Ke8 43. Bb5+ Kf8 44. Be2 c6 45. Bf1 Ke7 46. h4 Kd7 47. Be2 d5 48. h5 Kd6 49. hxg6 hxg6 50. Bf1 Ne6 51. Be2 c5 52. Nc2 Nc7 53. g4 Bc6 54. gxf5 gxf5 55. f4 e4 56. Kf2 Bb5 57. Rb3 Kc6 0-1

[Event "Portugal-ch Seniors-65 2022"]
[Site "Atouguia da Baleia"]
[Date "2022.06.15"]
[Round "1.4"]
[White "Lopes, Carlos Correia"]
[Black "Santos, Amadeu Solha"]
[Result "1-0"]
[ECO "C62"]
[WhiteElo "1766"]
[BlackElo "1457"]
[Annotator "NA RC COMBH"]
[PlyCount "88"]
[EventDate "2022.06.09"]
[EventType "swiss"]
[EventCountry "POR"]
[SourceTitle "playchess.com"]
[Source "ChessBase"]
[SourceQuality "1"]
[TimeControl "5400+30"]

1. e4 {[%emt 0:00:01]} e5 {[%emt 0:00:28]} 2. Nf3 {[%emt 0:00:32]} Nc6 {[%emt 0:00:16]} 3. Bb5 {[%emt 0:00:19]} d6 {[%emt 0:00:16]} 4. O-O {[%emt 0:00:58]} Bd7 {[%emt 0:00:02]} 5. c3 {[%emt 0:01:22]} Nf6 {[%emt 0:02:15]} 6. Re1 {[%emt 0:02:10]} Be7 {[%emt 0:00:58]} 7. d4 {[%emt 0:00:31]} O-O {[%emt 0:01:04]} 8. d5 {[%emt 0:00:39]} Nb8 {[%emt 0:01:13]} 9. Qe2 {[%emt 0:01:34]} a6 {[%emt 0:01:04]} 10. Bd3 {[%emt 0:00:28]} Bg4 {[%emt 0:00:36]} 11. Qe3 {[%emt 0:01:26]} Nh5 {[%emt 0:01:20]} 12. g3 {[%emt 0:00:49]} Nd7 {[%emt 0:02:15]} 13. b4 {[%emt 0:03:42]} Nb6 {[%emt 0:01:23]} 14. a4 {[%emt 0:02:05]} f5 {[%emt 0:01:17]} 15. Nfd2 {[%emt 0:24:19]} f4 {[%emt 0:01:57]} 16. gxf4 {[%emt 0:00:46]} Nxf4 {[%emt 0:00:59]} 17. Bf1 {[%emt 0:01:04]} Bg5 {[%emt 0:02:48]} 18. Qg3 {[%emt 0:00:54]} Qd7 {[%emt 0:05:52]} 19. f3 {[%emt 0:03:42]} Nh5 20. Qxg4 {[%emt 0:01:22]} Qxg4+ {[%emt 0:04:35]} 21. fxg4 {[%emt 0:00:32]} Nf4 {[%emt 0:00:13]} 22. a5 {[%emt 0:04:21]} Nd7 {[%emt 0:00:21]} 23. Nc4 {[%emt 0:00:54]} Nf6 {[%emt 0:01:15]} 24. Bxf4 {[%emt 0:02:45]} Bxf4 {[%emt 0:00:56]} 25. h3 {[%emt 0:01:36]} h5 {[%emt 0:00:31]} 26. gxh5 {[%emt 0:04:31]} Nxh5 {[%emt 0:00:37]} 27. Ra2 {[%emt 0:00:30]} Rf6 {[%emt 0:00:30]} 28. Rg2 {[%emt 0:01:58]} Raf8 {[%emt 0:00:50]} 29. Be2 {[%emt 0:01:41]} Ng3 {[%emt 0:03:17]} 30. Bg4 {[%emt 0:00:28]} Bg5 {[%emt 0:01:05]} 31. Rxg3 {[%emt 0:02:09]} Bh4 {[%emt 0:01:34]} 32. Rge3 {[%emt 0:13:30]} Bf2+ {[%emt 0:00:44]} 33. Kg2 {[%emt 0:00:41]} Bxe1 34. Rxe1 {[%emt 0:00:23]} Rf2+ {[%emt 0:05:41]} 35. Kg3 {[%emt 0:00:30]} g5 {[%emt 0:00:25]} 36. Bf5 {[%emt 0:00:49]} Rf4 {[%emt 0:00:47]} 37. Nbd2 {[%emt 0:00:33]} Rf6 {[%emt 0:00:37]} 38. Ne3 {[%emt 0:00:26]} Rh6 {[%emt 0:02:07]} 39. Ng4 {[%emt 0:01:00]} Rh8 {[%emt 0:01:03]} 40. c4 {[%emt 0:00:13]} Kf7 {[%emt 0:01:56]} 41. c5 {[%emt 0:00:19]} Ke7 {[%emt 0:00:27]} 42. Nc4 {[%emt 0:00:35]} dxc5 {[%emt 0:01:23]} 43. bxc5 {[%emt 0:01:01]} b5 {[%emt 0:03:11]} 44. Ncxe5 {[%emt 0:00:44]} Rg8 1-0

[Event "Portugal-ch Seniors-65 2022"]
[Site "Atouguia da Baleia"]
[Date "2022.06.15"]
[Round "1.5"]
[White "Nunes, Adelino Vitor"]
[Black "Julio, Joao Manuel dos Sant"]
[Result "0-1"]
[ECO "B06"]
[WhiteElo "1475"]
[BlackElo "2005"]
[Annotator "NA RC"]
[PlyCount "114"]
[EventDate "2022.06.09"]
[EventType "swiss"]
[EventCountry "POR"]
[SourceTitle "playchess.com"]
[Source "ChessBase"]
[SourceQuality "1"]
[TimeControl "5400+30"]

1. e4 {[%emt 0:00:02]} g6 {[%emt 0:00:06]} 2. c4 Bg7 {[%emt 0:00:03]} 3. Nf3 {[%emt 0:00:25]} e6 {[%emt 0:00:19]} 4. g3 {[%emt 0:00:07]} b6 {[%emt 0:00:07]} 5. Bg2 {[%emt 0:00:10]} Bb7 {[%emt 0:00:07]} 6. d3 {[%emt 0:00:09]} Ne7 {[%emt 0:00:11]} 7. O-O {[%emt 0:00:10]} d6 {[%emt 0:00:16]} 8. a3 {[%emt 0:00:20]} Nd7 {[%emt 0:00:11]} 9. Qc2 {[%emt 0:00:22]} O-O {[%emt 0:00:11]} 10. Nc3 {[%emt 0:00:00]} a6 {[%emt 0:00:38]} 11. b4 {[%emt 0:00:24]} h6 {[%emt 0:02:39]} 12. Bd2 e5 {[%emt 0:00:30]} 13. Qc1 {[%emt 0:00:51]} Kh7 {[%emt 0:00:11]} 14. a4 {[%emt 0:00:41]} a5 {[%emt 0:01:44]} 15. b5 Nc5 {[%emt 0:00:30]} 16. Qc2 {[%emt 0:00:58]} f5 {[%emt 0:01:36]} 17. exf5 {[%emt 0:00:14]} Nxf5 {[%emt 0:00:25]} 18. Ne4 {[%emt 0:01:55]} Ne6 {[%emt 0:00:48]} 19. Bc3 {[%emt 0:01:12]} Qd7 {[%emt 0:00:19]} 20. Rad1 {[%emt 0:01:36]} Rae8 {[%emt 0:01:02]} 21. h3 {[%emt 0:04:51]} Qc8 {[%emt 0:01:52]} 22. Kh2 {[%emt 0:01:29]} Qa8 {[%emt 0:00:13]} 23. Rde1 {[%emt 0:03:32]} Re7 {[%emt 0:00:45]} 24. g4 {[%emt 0:01:36]} Nfd4 {[%emt 0:00:33]} 25. Nxd4 {[%emt 0:00:35]} exd4 {[%emt 0:00:12]} 26. Bd2 {[%emt 0:01:10]} Ref7 {[%emt 0:02:28]} 27. f3 {[%emt 0:03:16]} Be5+ {[%emt 0:00:10]} 28. Kg1 {[%emt 0:01:02]} Nf4 {[%emt 0:01:20]} 29. Bxf4 {[%emt 0:01:26]} Bxf4 {[%emt 0:00:16]} 30. Qe2 {[%emt 0:03:49]} Qd8 {[%emt 0:00:29]} 31. Qb2 {[%emt 0:14:17]} Be3+ {[%emt 0:00:38]} 32. Kh2 {[%emt 0:02:00]} Qe7 {[%emt 0:01:09]} 33. Qe2 {[%emt 0:05:28]} Qh4 {[%emt 0:05:01]} 34. Rh1 {[%emt 0:11:35]} Bc8 {[%emt 0:05:50]} 35. Qf1 {[%emt 0:04:10]} Bxg4 {[%emt 0:01:12]} 36. Rxe3 {[%emt 0:00:14]} dxe3 {[%emt 0:00:13]} 37. Qe1 {[%emt 0:01:52]} Qxe1 {[%emt 0:00:30]} 38. Rxe1 {[%emt 0:00:10]} Bxf3 {[%emt 0:00:24]} 39. Rxe3 {[%emt 0:00:16]} Bxg2 {[%emt 0:00:33]} 40. Kxg2 {[%emt 0:00:10]} Rf1 {[%emt 0:00:11]} 41. Nc3 {[%emt 0:00:39]} R8f7 {[%emt 0:02:41]} 42. Nd5 {[%emt 0:01:07]} R1f2+ {[%emt 0:00:56]} 43. Kg3 {[%emt 0:00:24]} Ra2 {[%emt 0:00:44]} 44. Nc3 {[%emt 0:00:45]} Ra3 {[%emt 0:00:18]} 45. d4 {[%emt 0:00:14]} Kg7 {[%emt 0:00:07]} 46. h4 {[%emt 0:02:05]} Rf1 {[%emt 0:00:25]} 47. Kg4 {[%emt 0:01:20]} Kf7 {[%emt 0:01:55]} 48. c5 {[%emt 0:01:48]} dxc5 {[%emt 0:01:36]} 49. dxc5 {[%emt 0:00:10]} bxc5 {[%emt 0:00:53]} 50. Nd5 {[%emt 0:00:56]} Rxe3 {[%emt 0:00:35]} 51. Nxe3 {[%emt 0:00:06]} Ra1 {[%emt 0:00:10]} 52. Nd5 {[%emt 0:00:08]} Rxa4+ {[%emt 0:00:04]} 53. Kh3 {[%emt 0:00:25]} c4 {[%emt 0:00:22]} 54. Nxc7 {[%emt 0:00:12]} c3 {[%emt 0:00:18]} 55. b6 {[%emt 0:00:26]} c2 {[%emt 0:00:16]} 56. Na6 {[%emt 0:04:38]} c1=Q {[%emt 0:00:24]} 57. b7 {[%emt 0:00:04]} Qe3+ {[%emt 0:00:21]} 0-1

[Event "Portugal-ch Seniors-65 2022"]
[Site "Atouguia da Baleia"]
[Date "2022.06.16"]
[Round "2.1"]
[White "Gori, Andrea"]
[Black "Palhais, Custodio"]
[Result "1-0"]
[ECO "C92"]
[WhiteElo "1970"]
[BlackElo "1660"]
[Annotator "TA"]
[PlyCount "59"]
[EventDate "2022.06.09"]
[EventType "swiss"]
[EventCountry "POR"]
[SourceTitle "playchess.com"]
[Source "ChessBase"]
[SourceQuality "1"]
[TimeControl "5400+30"]

{[%evp 18,59,52,16,46,-8,-8,-18,-33,-18,0,-10,-2,-68,-48,-56,-25,-28,-14,-13,128,131,447,449,428,110,575,575,547,575,558,507,734,733,729,643,614,634,575,452,694,673,1078,922]} 1. e4 e5 2. Nf3 Nc6 3. Bb5 {[%cal Bf1b5,Bb5a4,Ba4b3][%mdl 32]} a6 4. Ba4 Nf6 5. O-O b5 6. Bb3 Be7 7. Re1 O-O 8. c3 d6 9. h3 Be6 10. Bc2 Qc8 {[#] C92: Closed Ruy Lopez: 9...Be6, Karpov and Flohr-Zaitsev Variations.} 11. Kh2 $146 ({White should play} 11. d4 $14 Bd7 12. Be3) ({Predecessor:} 11. a3 Ne8 12. d4 Bd7 13. Bb3 Bf6 14. Be3 Na5 15. Bc2 Nc4 16. Bc1 c5 17. d5 a5 18. Nbd2 Nxd2 19. Bxd2 {½-½ (30) Veselinov,I (1836)-Djakovac,E (2165) Bajina Basta 2020}) 11... d5 $11 12. d3 dxe4 {The position is equal.} 13. dxe4 Bc5 14. Be3 Bxe3 15. fxe3 ({White should try} 15. Rxe3 $11 Rd8 16. Nbd2) 15... h6 16. Nbd2 Nh7 17. a4 Qb7 18. b4 f6 (18... Nf6 $11 {remains equal.}) 19. Nb3 $16 {[#] Hoping for Nc5.} Bxb3 {[%mdl 8192]} (19... Rfd8 $16 20. Qb1 Qc8) 20. Bxb3+ $18 Kh8 21. Nh4 $2 (21. Qd7 $18 {is more deadly.}) 21... Ng5 $2 {[%mdl 8192]} (21... Ne7 $16 {is tougher.}) 22. Ng6+ {White is clearly winning.} Kh7 23. Nxf8+ Rxf8 24. Bd5 Nf7 25. Qg4 Nfd8 26. Qd7 bxa4 27. Rxa4 {[#] aiming for Rea1.} Qb6 28. Ra2 Kh8 (28... Nb8 $142 29. Qc8 Rh8) 29. Rea1 f5 30. exf5 {Weighted Error Value: White=0.57/Black=1.08} 1-0

[Event "Portugal-ch Seniors-65 2022"]
[Site "Atouguia da Baleia"]
[Date "2022.06.16"]
[Round "2.2"]
[White "Antao, Jorge"]
[Black "Seia, Joao Manuel"]
[Result "1-0"]
[ECO "C54"]
[WhiteElo "1819"]
[BlackElo "1657"]
[Annotator "NA RC COMBH"]
[PlyCount "49"]
[EventDate "2022.06.09"]
[EventType "swiss"]
[EventCountry "POR"]
[SourceTitle "playchess.com"]
[Source "ChessBase"]
[SourceQuality "1"]
[TimeControl "5400+30"]

1. e4 {[%emt 0:03:04]} e5 {[%emt 0:00:16]} 2. Nf3 {[%emt 0:00:16]} Nc6 {[%emt 0:00:06]} 3. Bc4 {[%emt 0:00:24]} Bc5 {[%emt 0:00:14]} 4. c3 {[%emt 0:00:25]} Nf6 {[%emt 0:01:54]} 5. b4 {[%emt 0:00:12]} Be7 {[%emt 0:01:30]} 6. d3 {[%emt 0:00:22]} O-O {[%emt 0:03:51]} 7. O-O {[%emt 0:01:48]} h6 {[%emt 0:01:19]} 8. b5 {[%emt 0:01:18]} Na5 {[%emt 0:01:14]} 9. Nxe5 {[%emt 0:01:09]} Nxc4 {[%emt 0:00:33]} 10. Nxc4 {[%emt 0:00:29]} d5 {[%emt 0:01:54]} 11. exd5 {[%emt 0:03:21]} Qxd5 {[%emt 0:02:51]} 12. Ba3 {[%emt 0:02:49]} Bxa3 {[%emt 0:01:11]} 13. Nbxa3 {[%emt 0:00:23]} Bf5 {[%emt 0:08:02]} 14. d4 {[%emt 0:02:44]} Be6 {[%emt 0:07:13]} 15. Ne3 {[%emt 0:03:51]} Qd7 {[%emt 0:03:28]} 16. c4 {[%emt 0:01:36]} Qe7 {[%emt 0:01:57]} 17. Nac2 {[%emt 0:01:03]} Rfd8 {[%emt 0:03:26]} 18. Qf3 {[%emt 0:03:08]} c6 {[%emt 0:10:28]} 19. bxc6 {[%emt 0:02:01]} bxc6 {[%emt 0:00:10]} 20. Rfe1 {[%emt 0:01:39]} Qc7 {[%emt 0:01:51]} 21. Rad1 {[%emt 0:02:34]} a5 {[%emt 0:02:57]} 22. Nf5 {[%emt 0:02:15]} Bxc4 {[%emt 0:06:21]} 23. Nxh6+ {[%emt 0:08:05]} Kf8 {[%emt 0:03:05]} 24. Nf5 {[%emt 0:01:06]} Bxa2 {[%emt 0:01:20]} 25. Qa3+ {[%emt 0:00:31]} 1-0

[Event "Portugal-ch Seniors-65 2022"]
[Site "Atouguia da Baleia"]
[Date "2022.06.16"]
[Round "2.3"]
[White "Mendes, Jorge Alberto Dacal"]
[Black "Lopes, Carlos Correia"]
[Result "1-0"]
[ECO "C31"]
[WhiteElo "1783"]
[BlackElo "1766"]
[Annotator "NA RC COMBH"]
[PlyCount "39"]
[EventDate "2022.06.09"]
[EventType "swiss"]
[EventCountry "POR"]
[SourceTitle "playchess.com"]
[Source "ChessBase"]
[SourceQuality "1"]
[TimeControl "5400+30"]

1. e4 e5 2. f4 d5 3. exd5 e4 4. d3 exd3 5. Bxd3 Nf6 6. Nf3 Bc5 7. Qe2+ Kf8 8. Be3 Bxe3 9. Qxe3 Qxd5 10. Nc3 Qa5 11. O-O-O Be6 12. Bc4 Ng4 13. Qe2 Nc6 14. Bxe6 fxe6 15. Qxe6 Nf2 16. Rd7 Qh5 17. Ng5 Qe8 18. Rf7+ Kg8 19. Re7+ Kf8 20. Rxe8+ 1-0

[Event "Portugal-ch Seniors-65 2022"]
[Site "Atouguia da Baleia"]
[Date "2022.06.16"]
[Round "2.5"]
[White "Catarro, Jose Joao Dias"]
[Black "Morais, Vitor"]
[Result "0-1"]
[ECO "A45"]
[WhiteElo "1833"]
[BlackElo "1878"]
[Annotator "NA RC COMBH"]
[PlyCount "140"]
[EventDate "2022.06.09"]
[EventType "swiss"]
[EventCountry "POR"]
[SourceTitle "playchess.com"]
[Source "ChessBase"]
[SourceQuality "1"]
[TimeControl "5400+30"]

1. d4 {[%emt 0:00:02]} Nf6 {[%emt 0:00:11]} 2. Bf4 {[%emt 0:00:12]} d6 {[%emt 0:00:08]} 3. Nc3 {[%emt 0:00:59]} g6 {[%emt 0:00:09]} 4. Qd2 {[%emt 0:00:21]} Bg7 {[%emt 0:00:08]} 5. e4 {[%emt 0:00:16]} O-O {[%emt 0:00:07]} 6. f3 {[%emt 0:01:34]} Nc6 7. O-O-O {[%emt 0:00:25]} a5 {[%emt 0:01:02]} 8. g4 {[%emt 0:01:29]} Nd7 {[%emt 0:00:27]} 9. Nge2 {[%emt 0:01:03]} e5 {[%emt 0:00:30]} 10. dxe5 {[%emt 0:01:24]} Ndxe5 {[%emt 0:00:00]} 11. Ng1 {[%emt 0:02:26]} Be6 {[%emt 0:00:13]} 12. h4 {[%emt 0:01:48]} Nc4 {[%emt 0:00:55]} 13. Bxc4 {[%emt 0:00:31]} Bxc4 {[%emt 0:00:10]} 14. b3 {[%emt 0:01:49]} Be6 {[%emt 0:00:19]} 15. Bh6 {[%emt 0:01:21]} Qf6 {[%emt 0:02:36]} 16. Bxg7 {[%emt 0:01:12]} Qxg7 {[%emt 0:00:22]} 17. a4 {[%emt 0:05:13]} Nb4 {[%emt 0:00:16]} 18. Qd4 {[%emt 0:00:26]} Rfd8 {[%emt 0:01:12]} 19. Nge2 {[%emt 0:01:35]} c6 {[%emt 0:00:28]} 20. h5 {[%emt 0:01:23]} d5 {[%emt 0:00:38]} 21. hxg6 {[%emt 0:01:30]} hxg6 {[%emt 0:00:22]} 22. e5 {[%emt 0:01:52]} c5 {[%emt 0:01:43]} 23. Qf4 {[%emt 0:00:37]} Nc6 {[%emt 0:00:42]} 24. Rh2 {[%emt 0:05:27]} g5 {[%emt 0:03:27]} 25. Qd2 {[%emt 0:05:00]} Nxe5 {[%emt 0:00:14]} 26. Rf1 {[%emt 0:01:05]} f6 {[%emt 0:09:18]} 27. Ng3 {[%emt 0:01:36]} Kf7 {[%emt 0:14:39]} 28. Qe2 {[%emt 0:02:04]} Rh8 {[%emt 0:00:36]} 29. Rfh1 {[%emt 0:03:22]} Rxh2 {[%emt 0:00:17]} 30. Rxh2 {[%emt 0:00:20]} Rh8 {[%emt 0:02:58]} 31. Nh5 {[%emt 0:01:42]} Qf8 {[%emt 0:01:46]} 32. Qd1 {[%emt 0:01:00]} Qd8 {[%emt 0:00:40]} 33. Rf2 {[%emt 0:02:38]} Qd7 {[%emt 0:05:57]} 34. Ng3 {[%emt 0:01:32]} Rh3 {[%emt 0:00:46]} 35. Nf5 {[%emt 0:03:21]} b6 {[%emt 0:02:16]} 36. Kb2 {[%emt 0:03:59]} Ng6 {[%emt 0:08:46]} 37. Qf1 {[%emt 0:00:30]} Nf4 {[%emt 0:00:13]} 38. Ne2 {[%emt 0:03:58]} Rh8 {[%emt 0:01:25]} 39. Neg3 {[%emt 0:04:51]} Qc7 {[%emt 0:06:09]} 40. Qe1 {[%emt 0:03:02]} Qe5+ {[%emt 0:02:49]} 41. Qxe5 {[%emt 0:00:23]} fxe5 {[%emt 0:00:10]} 42. Rd2 {[%emt 0:02:37]} Rh3 {[%emt 0:01:58]} 43. Rf2 Kf6 {[%emt 0:00:55]} 44. Nf1 {[%emt 0:03:22]} Bxf5 {[%emt 0:00:30]} 45. gxf5 {[%emt 0:00:15]} Kxf5 {[%emt 0:00:08]} 46. Ne3+ {[%emt 0:00:22]} Kf6 {[%emt 0:00:53]} 47. Ng4+ {[%emt 0:01:20]} Ke6 {[%emt 0:00:19]} 48. Kc1 {[%emt 0:00:38]} d4 {[%emt 0:01:55]} 49. Kd2 {[%emt 0:00:45]} Kf5 {[%emt 0:00:13]} 50. Nh2 {[%emt 0:02:31]} Rg3 {[%emt 0:00:26]} 51. Nf1 {[%emt 0:00:36]} Rg2 {[%emt 0:01:21]} 52. Ke1 {[%emt 0:01:11]} Rxf2 {[%emt 0:01:42]} 53. Kxf2 {[%emt 0:00:02]} g4 {[%emt 0:00:14]} 54. Ng3+ {[%emt 0:00:32]} Kg5 {[%emt 0:00:18]} 55. Ne4+ {[%emt 0:00:15]} Kh4 {[%emt 0:00:25]} 56. fxg4 {[%emt 0:00:52]} Kxg4 {[%emt 0:00:12]} 57. Nf6+ {[%emt 0:00:38]} Kf5 {[%emt 0:00:11]} 58. Nd7 {[%emt 0:00:12]} Nd5 {[%emt 0:00:12]} 59. Nb8 {[%emt 0:01:51]} e4 {[%emt 0:00:13]} 60. Nd7 {[%emt 0:01:49]} Kf4 {[%emt 0:00:09]} 61. Nf8 {[%emt 0:00:51]} e3+ {[%emt 0:00:41]} 62. Ke2 {[%emt 0:03:13]} Nb4 {[%emt 0:00:22]} 63. Ng6+ {[%emt 0:03:04]} Ke4 {[%emt 0:01:25]} 64. Nh4 {[%emt 0:01:21]} Nxc2 {[%emt 0:00:14]} 65. Ng2 {[%emt 0:00:39]} d3+ {[%emt 0:00:13]} 66. Kd1 {[%emt 0:01:25]} e2+ {[%emt 0:00:11]} 67. Kd2 {[%emt 0:00:13]} e1=Q+ {[%emt 0:00:18]} 68. Nxe1 {[%emt 0:00:30]} Nxe1 {[%emt 0:00:18]} 69. Kxe1 {[%emt 0:00:41]} Ke3 70. Kd1 {[%emt 0:00:30]} d2 {[%emt 0:00:41]} 0-1